bitfinex-derivatives/quotes_BTCF0:USTF0_20240814
["timestamp","ask_amount","ask_price","bid_price","bid_amount"]
[1723672039239,0.00025422,58987.0,58986.0,1.68269481]
[1723672039538,0.00025422,58987.0,58986.0,2.22051494]
[1723672040038,0.00225422,58987.0,58986.0,2.22251494]
[1723672041338,0.00225422,58987.0,58986.0,2.34033521]
[1723672041536,0.00225422,58987.0,58986.0,2.22194935]
[1723672042734,0.00225422,58987.0,58986.0,2.21976382]
[1723672042931,0.00225422,58987.0,58986.0,2.08818474]
[1723672043136,0.00225422,58987.0,58986.0,2.08718474]
[1723672043527,0.00025422,58987.0,58986.0,2.08618474]
[1723672045631,0.00025422,58987.0,58986.0,2.21774953]
[1723672045835,0.00025422,58987.0,58986.0,2.08618474]
[1723672046239,0.00025422,58987.0,58986.0,2.20449354]
[1723672047139,0.00025422,58987.0,58986.0,2.20448778]
[1723672047329,0.00025422,58987.0,58986.0,2.08533544]
[1723672047837,0.00025422,58987.0,58986.0,2.21653306]
[1723672048033,0.00025422,58987.0,58986.0,2.08533544]
[1723672048233,0.00025422,58987.0,58986.0,1.8052685]
[1723672048434,0.00025422,58987.0,58986.0,2.21650947]
[1723672048739,0.00025422,58987.0,58986.0,2.08531185]
[1723672049543,0.00025422,58987.0,58986.0,2.08531096]
[1723672049943,0.00025422,58987.0,58986.0,2.21650858]
[1723672050144,0.00025422,58987.0,58986.0,2.08531096]
[1723672050335,0.00025422,58987.0,58986.0,1.5475296]
[1723672050535,0.00025422,58987.0,58986.0,2.08530407]
[1723672050845,0.00025422,58987.0,58986.0,1.82168913]
[1723672051144,0.00025422,58987.0,58986.0,2.08530406]
[1723672051937,0.00025422,58987.0,58986.0,2.08518715]
[1723672052135,0.00025422,58987.0,58986.0,2.08518716]
[1723672052846,0.00025422,58987.0,58986.0,2.21633546]
[1723672053236,0.00025422,58987.0,58986.0,2.08980029]
[1723672053440,0.0688,58996.0,58995.0,0.08474]
[1723672053638,0.0688,58996.0,58995.0,1.38273369]
[1723672054948,0.0688,58996.0,58995.0,1.38373369]
[1723672055951,0.0688,58996.0,58995.0,1.53135288]
[1723672056463,0.0688,58996.0,58995.0,1.53235288]
[1723672056645,0.0688,58996.0,58995.0,1.29779919]
[1723672056834,0.0688,58996.0,58995.0,1.53180933]
[1723672057034,0.0688,58996.0,58995.0,1.53080933]
[1723672057237,0.0688,58996.0,58995.0,1.53180933]
[1723672058751,0.0688,58996.0,58995.0,1.91371962]
[1723672058950,0.0688,58996.0,58995.0,1.53180933]
[1723672059744,0.0688,58996.0,58995.0,1.79540716]
[1723672060452,0.0688,58996.0,58995.0,1.5318069]
[1723672062454,0.0688,58996.0,58995.0,1.54155777]
[1723672064053,0.0688,58996.0,58995.0,1.39394101]
[1723672064260,0.0688,58996.0,58995.0,1.54155584]
[1723672064551,0.0688,58996.0,58995.0,1.54155944]
[1723672065950,0.0688,58996.0,58995.0,1.54183748]
[1723672066150,0.0688,58996.0,58995.0,1.54083748]
[1723672067855,0.0688,58996.0,58995.0,1.39321905]
[1723672068060,0.0688,58996.0,58995.0,1.80442948]
[1723672068454,0.0688,58996.0,58995.0,1.80429074]
[1723672068953,0.0688,58996.0,58995.0,1.54069431]
[1723672069152,0.0688,58996.0,58995.0,1.45595431]
[1723672070254,0.0688,58996.0,58995.0,1.58725265]
[1723672070460,0.0688,58996.0,58995.0,1.85085049]
[1723672071758,0.07085422,59001.0,59000.0,0.084733]
[1723672071966,0.07085422,59001.0,59000.0,0.96729644]
[1723672073551,0.07085422,59001.0,59000.0,1.09879802]
[1723672074562,0.07085422,59001.0,59000.0,1.08583384]
[1723672074753,0.07085422,59001.0,59000.0,1.21735523]
[1723672075157,0.07085422,59001.0,59000.0,1.21851235]
[1723672075661,0.07085422,59001.0,59000.0,1.07089835]
[1723672075862,0.07085422,59001.0,59000.0,1.21851198]
[1723672076058,0.07085422,59001.0,59000.0,1.07089835]
[1723672076365,0.07085422,59001.0,59000.0,1.21851198]
[1723672077657,0.07085422,59001.0,59000.0,0.96844955]
[1723672078974,0.07085422,59001.0,59000.0,1.32924955]
[1723672079369,0.07085422,59001.0,59000.0,1.59284744]
[1723672079760,0.1449,59012.0,59011.0,0.084717]
[1723672080064,0.2649,59012.0,59011.0,1.47632325]
[1723672080766,0.2649,59012.0,59011.0,1.35922325]
[1723672080965,0.2649,59012.0,59011.0,1.47632325]
[1723672081168,0.2649,59012.0,59011.0,1.47732325]
[1723672081566,0.2649,59012.0,59011.0,1.47731317]
[1723672082165,0.2649,59012.0,59011.0,1.74087477]
[1723672082369,0.2649,59012.0,59011.0,1.75087042]
[1723672082571,0.2649,59012.0,59011.0,1.48830882]
[1723672082965,0.1941,59012.0,59011.0,1.48830882]
[1723672084265,0.1941,59012.0,59011.0,1.46860457]
[1723672084467,0.1941,59012.0,59011.0,1.4879642]
[1723672085074,0.1941,59012.0,59011.0,1.48796785]
[1723672086071,0.12,59012.0,59011.0,1.3670972]
[1723672086276,0.1875,59012.0,59011.0,1.3670972]
[1723672086668,0.1875,59012.0,59011.0,1.2195003]
[1723672086977,0.1875,59012.0,59011.0,1.36709719]
[1723672088673,0.1875,59012.0,59011.0,1.2195003]
[1723672088869,0.1875,59012.0,59011.0,1.36709719]
[1723672089177,0.12,59012.0,59011.0,1.36709719]
[1723672092985,0.06915942,59012.0,59011.0,1.75313785]
[1723672096084,0.06915942,59012.0,59011.0,1.48958025]
[1723672096284,0.06915942,59012.0,59011.0,1.75313644]
[1723672096587,0.06915942,59012.0,59011.0,1.48957479]
[1723672096791,0.06915942,59012.0,59011.0,1.75313091]
[1723672097291,0.06915942,59012.0,59011.0,1.48957479]
[1723672097588,0.06915942,59012.0,59011.0,1.48857479]
[1723672097783,0.06915942,59012.0,59011.0,1.48957479]
[1723672097985,0.06915942,59012.0,59011.0,1.48857479]
[1723672098193,0.06915942,59012.0,59011.0,1.48957479]
[1723672099895,0.06915942,59012.0,59011.0,1.36709173]
[1723672100083,0.06915942,59012.0,59011.0,1.48850525]
[1723672101790,0.06915942,59012.0,59011.0,1.7520633]
[1723672101986,0.06915942,59012.0,59011.0,1.48850525]
[1723672102592,0.06915942,59012.0,59011.0,1.75206329]
[1723672102789,0.06915942,59012.0,59011.0,1.48850525]
[1723672103691,0.06915942,59012.0,59011.0,1.34090978]
[1723672103989,0.06915942,59012.0,59011.0,1.36709383]
[1723672106491,0.06915942,59012.0,59011.0,1.4892843]
[1723672107497,0.06915942,59012.0,59011.0,1.48928486]
[1723672108003,0.06915942,59012.0,59011.0,1.48928344]
[1723672111292,0.06915942,59012.0,59011.0,1.48928343]
[1723672113896,0.06915942,59012.0,59011.0,1.87137802]
[1723672114894,0.06915942,59012.0,59011.0,1.60975652]
[1723672115207,0.01832062,59012.0,59011.0,1.88736849]
[1723672115700,0.072,59013.0,59012.0,0.084715]
[1723672115910,0.182,59013.0,59012.0,1.02667084]
[1723672116101,0.182,59013.0,59012.0,0.61552584]
[1723672116602,0.182,59013.0,59012.0,0.87907417]
[1723672116804,0.182,59013.0,59012.0,1.02766123]
[1723672117504,0.182,59013.0,59012.0,0.89505982]
[1723672117910,0.182,59013.0,59012.0,1.0265926]
[1723672118998,0.182,59013.0,59012.0,0.7630499]
[1723672119198,0.182,59013.0,59012.0,1.02660794]
[1723672119400,0.182,59013.0,59012.0,1.02660775]
[1723672119599,0.182,59013.0,59012.0,1.02330677]
[1723672120603,0.182,59013.0,59012.0,0.61215623]
[1723672120804,0.182,59013.0,59012.0,0.75974873]
[1723672121011,0.182,59013.0,59012.0,1.02320599]
[1723672122407,0.182,59013.0,59012.0,1.14971385]
[1723672122999,0.182,59013.0,59012.0,0.87561349]
[1723672123205,0.182,59013.0,59012.0,1.02320598]
[1723672123402,0.182,59013.0,59012.0,1.87131383]
[1723672124511,0.182,59013.0,59012.0,1.87138433]
[1723672131305,0.182,59013.0,59012.0,1.46023413]
[1723672131529,0.182,59013.0,59012.0,1.87138573]
[1723672134108,0.182,59013.0,59012.0,1.87186563]
[1723672135219,0.182,59013.0,59012.0,1.72427271]
[1723672135418,0.182,59013.0,59012.0,1.87186557]
[1723672136925,0.182,59013.0,59012.0,1.74031464]
[1723672139033,0.182,59013.0,59012.0,1.74084044]
[1723672139413,0.182,59013.0,59012.0,1.74083845]
[1723672142231,0.182,59013.0,59012.0,1.35077358]
[1723672142433,0.182,59013.0,59012.0,1.74083854]
[1723672142733,0.182,59013.0,59012.0,1.74083784]
[1723672143229,0.182,59013.0,59012.0,1.74085784]
[1723672145830,0.182,59013.0,59012.0,1.7408555]
[1723672146431,0.182,59013.0,59012.0,1.74084786]
[1723672146825,0.182,59013.0,59012.0,1.50496214]
[1723672147024,0.182,59013.0,59012.0,1.74054157]
[1723672148337,0.182,59013.0,59012.0,1.74054122]
[1723672150434,0.182,59013.0,59012.0,1.74054006]
[1723672151232,0.182,59013.0,59012.0,1.82525506]
[1723672151431,0.182,59013.0,59012.0,2.07544706]
[1723672151631,0.072,59013.0,59012.0,2.07524222]
[1723672151827,0.072,59013.0,59012.0,1.9566579]
[1723672152940,0.00016789,59017.0,59016.0,0.08471]
[1723672153142,0.12016789,59017.0,59016.0,1.14485583]
[1723672153639,0.12016789,59017.0,59016.0,1.01835097]
[1723672154341,0.12016789,59017.0,59016.0,1.14587149]
[1723672154839,0.12016789,59017.0,59016.0,1.14595825]
[1723672155044,0.12016789,59017.0,59016.0,1.14695825]
[1723672158140,0.12016789,59017.0,59016.0,0.88340563]
[1723672158342,0.12016789,59017.0,59016.0,1.14695582]
[1723672160543,0.12016789,59017.0,59016.0,1.11185582]
[1723672160943,0.12016789,59017.0,59016.0,1.11158926]
[1723672161832,0.12016789,59017.0,59016.0,0.985084]
[1723672162038,0.12016789,59017.0,59016.0,1.11158743]
[1723672165547,0.12016789,59017.0,59016.0,1.11125911]
[1723672165852,0.12016789,59017.0,59016.0,1.11125908]
[1723672168747,0.12016789,59017.0,59016.0,1.19596908]
[1723672169144,0.12016789,59017.0,59016.0,1.19596909]
[1723672170945,0.12016789,59017.0,59016.0,1.11125909]
[1723672172740,0.12016789,59017.0,59016.0,0.84771381]
[1723672172949,0.12016789,59017.0,59016.0,1.11127427]
[1723672174048,0.12016789,59017.0,59016.0,1.23426314]
[1723672174850,0.12016789,59017.0,59016.0,1.23315823]
[1723672175254,0.12016789,59017.0,59016.0,1.11456704]
[1723672176448,0.12016789,59017.0,59016.0,0.85101508]
[1723672176950,0.12016789,59017.0,59016.0,0.70342121]
[1723672178051,0.12016789,59017.0,59016.0,1.11457556]
[1723672178649,0.12016789,59017.0,59016.0,1.11018255]
[1723672179241,0.12016789,59017.0,59016.0,1.11003376]
[1723672179447,0.12016789,59017.0,59016.0,0.87637174]
[1723672179745,0.12016789,59017.0,59016.0,1.10990193]
[1723672181042,0.12016789,59017.0,59016.0,0.96228259]
[1723672181249,0.12016789,59017.0,59016.0,1.10985994]
[1723672185861,0.12016789,59017.0,59016.0,1.83145994]
[1723672188366,0.12016789,59017.0,59016.0,1.47065994]
[1723672188750,0.12016789,59017.0,59016.0,0.93483092]
[1723672189054,0.12016789,59017.0,59016.0,1.477804]
[1723672189455,0.12016789,59017.0,59016.0,1.74137089]
[1723672189662,0.12016789,59017.0,59016.0,1.34615276]
[1723672190056,0.12016789,59017.0,59016.0,1.05352884]
[1723672190257,0.12016789,59017.0,59016.0,1.46467465]
[1723672190472,0.12016789,59017.0,59016.0,1.47264245]
[1723672191063,0.12016789,59017.0,59016.0,1.59630684]
[1723672191261,0.12016789,59017.0,59016.0,1.7228132]
[1723672192060,0.12016789,59017.0,59016.0,1.59630684]
[1723672192462,0.12016789,59017.0,59016.0,1.72281324]
[1723672193565,0.12016789,59017.0,59016.0,1.36201324]
[1723672193756,0.12016789,59017.0,59016.0,1.59630684]
[1723672193963,0.12016789,59017.0,59016.0,1.60427464]
[1723672195865,0.12016789,59017.0,59016.0,1.60425088]
[1723672197172,0.12016789,59017.0,59016.0,1.47261869]
[1723672197771,0.00016789,59017.0,59016.0,1.47261869]
[1723672197960,0.02016789,59017.0,59016.0,1.47261869]
[1723672198167,0.02016789,59017.0,59016.0,1.47198598]
[1723672198475,0.02016789,59017.0,59016.0,1.47198655]
[1723672199478,0.02016789,59017.0,59016.0,1.32440329]
[1723672199667,0.02016789,59017.0,59016.0,1.47198796]
[1723672199868,0.02016789,59017.0,59016.0,1.47198795]
[1723672202062,0.02016789,59017.0,59016.0,0.9343581]
[1723672202268,0.02016789,59017.0,59016.0,1.2084439]
[1723672202467,0.02016789,59017.0,59016.0,1.38998795]
[1723672202868,0.02016789,59017.0,59016.0,1.47198795]
[1723672205976,0.02016789,59017.0,59016.0,1.47198757]
[1723672206279,0.02016789,59017.0,59016.0,1.35097999]
[1723672206467,0.02016789,59017.0,59016.0,1.47195597]
[1723672209778,0.02016789,59017.0,59016.0,1.34545492]
[1723672209974,0.02016789,59017.0,59016.0,1.73549982]
[1723672210275,0.02016789,59017.0,59016.0,1.47195596]
[1723672210781,0.02016789,59017.0,59016.0,1.20841211]
[1723672211078,0.02016789,59017.0,59016.0,1.34423484]
[1723672211280,0.02016789,59017.0,59016.0,1.08066964]
[1723672211483,0.02016789,59017.0,59016.0,1.47074069]
[1723672212083,0.02016789,59017.0,59016.0,1.72087986]
[1723672212275,0.02016789,59017.0,59016.0,1.47074069]
[1723672213072,0.02016789,59017.0,59016.0,0.93308508]
[1723672213274,0.02016789,59017.0,59016.0,1.47073632]
[1723672213867,0.42016789,59017.0,59016.0,1.30402632]
[1723672214070,0.42016789,59017.0,59016.0,1.17752015]
[1723672214274,0.86567589,59017.0,59016.0,0.38167669]
[1723672214479,0.08472,59009.0,59008.0,0.1185519]
[1723672214666,0.37144,59009.0,59008.0,0.51476789]
[1723672214870,0.37144,59009.0,59007.0,0.10163525]
[1723672214871,0.5084,59008.0,59007.0,0.10163525]
[1723672215066,0.869842,59008.0,59007.0,0.1064887]
[1723672215371,1.269842,59008.0,59007.0,0.1064887]
[1723672215573,0.084723,59007.0,59004.0,0.0845992]
[1723672215777,0.169454,59004.0,59003.0,0.0845992]
[1723672215980,0.169456,59003.0,59002.0,0.06768242]
[1723672216177,0.084734,58999.0,58998.0,0.00025422]
[1723672216375,0.084734,58999.0,58995.0,0.0675974]
[1723672216376,0.084739,58996.0,58995.0,0.0675974]
[1723672216571,0.637539,58996.0,58995.0,0.05069812]
[1723672216880,0.593261,58995.0,58989.0,0.05084663]
[1723672217180,0.3608,58990.0,58989.0,0.05084663]
[1723672217373,0.3608,58990.0,58989.0,0.00014404]
[1723672217374,0.4808,58990.0,58989.0,0.00014404]
[1723672217574,1.38936,58990.0,58989.0,0.00014404]
[1723672218172,1.474107,58990.0,58989.0,0.00014404]
[1723672218378,0.565547,58990.0,58989.0,0.15014404]
[1723672220382,0.568547,58990.0,58989.0,0.15014404]
[1723672221187,1.077107,58990.0,58989.0,0.00014404]
[1723672221374,0.4838,58990.0,58989.0,0.00014404]
[1723672221575,0.99236,58990.0,58989.0,0.08489304]
[1723672222077,0.63156,58990.0,58989.0,0.08489304]
[1723672224577,0.63156,58990.0,58989.0,0.24489304]
[1723672226082,1.03156,58990.0,58989.0,0.24489304]
[1723672226977,1.116307,58990.0,58989.0,0.24489304]
[1723672227481,0.716307,58990.0,58989.0,0.24489304]
[1723672229677,0.207747,58990.0,58989.0,0.24489304]
[1723672230386,0.716307,58990.0,58989.0,0.24489304]
[1723672233290,0.72645061,58990.0,58989.0,0.24489304]
[1723672233489,0.21789061,58990.0,58989.0,0.24489304]
[1723672241188,0.21789061,58990.0,58989.0,0.16014404]
[1723672242290,0.57869061,58990.0,58989.0,0.16014404]
[1723672242486,0.57869061,58990.0,58989.0,0.21084663]
[1723672243491,0.57869061,58990.0,58989.0,0.22774144]
[1723672244383,0.57869061,58990.0,58989.0,0.34317128]
[1723672245296,0.57869061,58990.0,58989.0,0.24475645]
[1723672245598,0.57869061,58990.0,58989.0,0.25867349]
[1723672248993,0.57869061,58990.0,58989.0,0.2587334]
[1723672250802,0.21789061,58990.0,58989.0,0.2587334]
[1723672252098,0.30263761,58990.0,58989.0,0.36036865]
[1723672252398,0.35317299,58990.0,58989.0,0.2587334]
[1723672252596,0.35317299,58990.0,58989.0,0.25904656]
[1723672252989,0.30263761,58990.0,58989.0,0.25904656]
[1723672253194,0.35326817,58990.0,58989.0,0.25904656]
[1723672255295,1.26182817,58990.0,58989.0,0.09904656]
[1723672257307,1.26182817,58990.0,58989.0,0.09908588]
[1723672257609,1.46116775,58990.0,58986.0,0.08474751]
[1723672257812,1.46116775,58990.0,58972.0,0.11857446]
[1723672257813,0.52720517,58987.0,58984.0,1.6e-07]
[1723672258107,0.082,58985.0,58979.0,0.05085982]
[1723672258411,0.08477,58974.0,58973.0,0.05085982]
[1723672258706,0.54557,58974.0,58973.0,0.05085982]
[1723672259010,0.084774,58971.0,58970.0,0.1351]
[1723672259208,0.32729891,58971.0,58970.0,0.1351]
[1723672259405,1.185494,58971.0,58970.0,0.1351]
[1723672261612,1.19532356,58971.0,58970.0,0.1351]
[1723672261912,1.19532356,58971.0,58970.0,0.19981263]
[1723672262207,0.79532356,58971.0,58970.0,0.28458861]
[1723672262406,0.79532356,58971.0,58970.0,0.233876]
[1723672262611,0.79532356,58971.0,58970.0,0.28456621]
[1723672263004,0.79632356,58971.0,58970.0,0.29856621]
[1723672263204,1.19632356,58971.0,58970.0,0.29856621]
[1723672263505,0.79632356,58971.0,58970.0,0.247876]
[1723672264010,0.79632356,58971.0,58970.0,0.397876]
[1723672264011,0.20560356,58971.0,58970.0,0.397876]
[1723672265205,0.56640356,58971.0,58970.0,0.397876]
[1723672265915,0.20560356,58971.0,58970.0,0.397876]
[1723672266114,0.56640356,58971.0,58970.0,0.397876]
[1723672268614,0.56640356,58971.0,58970.0,0.247876]
[1723672270113,0.56540356,58971.0,58970.0,0.237876]
[1723672270813,0.56540356,58971.0,58970.0,0.1531]
[1723672271818,0.56540356,58971.0,58970.0,0.237876]
[1723672272115,0.56540356,58971.0,58970.0,0.229876]
[1723672272314,0.56540356,58971.0,58970.0,0.389876]
[1723672272717,0.56540356,58971.0,58970.0,0.383876]
[1723672272918,0.56540356,58971.0,58970.0,0.388876]
[1723672274915,0.48062956,58971.0,58970.0,0.388876]
[1723672276820,0.56540356,58971.0,58970.0,0.388876]
[1723672281927,0.48062956,58971.0,58970.0,0.388876]
[1723672282431,0.48062956,58971.0,58970.0,0.43949631]
[1723672283623,0.48062956,58971.0,58970.0,0.388876]
[1723672284024,0.11982956,58971.0,58970.0,0.388876]
[1723672287532,0.11982956,58971.0,58970.0,0.47291924]
[1723672288633,0.17043904,58971.0,58970.0,0.47491924]
[1723672289150,0.17043904,58971.0,58970.0,0.47484521]
[1723672289917,0.17143904,58971.0,58970.0,0.47684521]
[1723672290523,0.17143904,58971.0,58970.0,0.47884521]
[1723672293841,0.12082956,58971.0,58970.0,0.47884521]
[1723672294042,0.12082956,58971.0,58970.0,0.56362794]
[1723672295640,0.12082956,58971.0,58970.0,0.47884521]
[1723672296632,0.12082956,58971.0,58970.0,0.47084521]
[1723672296837,0.12082956,58971.0,58970.0,0.47884521]
[1723672297134,0.12082956,58971.0,58970.0,0.47784521]
[1723672298035,0.17143918,58971.0,58970.0,0.47684521]
[1723672298235,0.17143917,58971.0,58970.0,0.47684521]
[1723672303437,0.17143917,58971.0,58970.0,0.62456097]
[1723672303640,0.17143917,58971.0,58970.0,0.47684521]
[1723672305247,0.17143917,58971.0,58970.0,0.62456095]
[1723672308043,0.17143917,58971.0,58970.0,0.62456097]
[1723672308746,0.17143917,58971.0,58970.0,0.6244111]
[1723672309149,0.17143917,58971.0,58970.0,0.62441119]
[1723672311446,0.12082956,58971.0,58970.0,0.88817909]
[1723672311663,0.12082956,58971.0,58970.0,0.98943196]
[1723672312651,0.12082956,58971.0,58970.0,0.98911173]
[1723672313554,0.12082956,58971.0,58970.0,0.90561253]
[1723672314845,0.12082956,58971.0,58970.0,0.49412887]
[1723672315045,0.12082956,58971.0,58970.0,0.98909767]
[1723672316047,0.195774,58971.0,58970.0,0.90432167]
[1723672316249,0.195774,58971.0,58970.0,0.8878448]
[1723672316550,0.111,58971.0,58970.0,0.98909767]
[1723672317945,0.111,58971.0,58970.0,0.8878448]
[1723672318147,0.111,58971.0,58970.0,0.80435297]
[1723672318662,0.111,58971.0,58970.0,0.80435717]
[1723672318853,0.111,58971.0,58970.0,0.392876]
[1723672319055,0.111,58971.0,58970.0,0.80435717]
[1723672319754,0.12100958,58971.0,58970.0,0.80435717]
[1723672319955,0.12100958,58971.0,58970.0,0.88784416]
[1723672321151,0.12100958,58971.0,58970.0,0.47636299]
[1723672321347,0.12100958,58971.0,58970.0,0.88784426]
[1723672321544,0.12100958,58971.0,58970.0,0.80435727]
[1723672323354,0.12100958,58971.0,58970.0,0.88800953]
[1723672323557,0.12100958,58971.0,58970.0,0.62423948]
[1723672324065,0.111,58971.0,58970.0,0.70901548]
[1723672324453,0.111,58971.0,58970.0,0.79101548]
[1723672325056,0.111,58971.0,58970.0,0.70901548]
[1723672325258,0.05060961,58974.0,58973.0,0.084772]
[1723672325462,0.16060961,58974.0,58973.0,0.254772]
[1723672325762,0.11,58974.0,58973.0,0.33951667]
[1723672326866,0.11,58974.0,58973.0,0.34351667]
[1723672327054,0.11,58974.0,58973.0,0.258772]
[1723672327559,0.11,58974.0,58973.0,0.261772]
[1723672327962,0.11,58974.0,58973.0,0.34506895]
[1723672329860,0.16060961,58974.0,58973.0,0.42980317]
[1723672330659,0.11,58974.0,58973.0,0.42980317]
[1723672332161,0.11,58974.0,58973.0,0.34650622]
[1723672332665,0.16059037,58974.0,58973.0,0.34650622]
[1723672332968,0.24536037,58974.0,58973.0,0.34650622]
[1723672335566,0.24536037,58974.0,58973.0,0.43003358]
[1723672339457,0.24536037,58974.0,58973.0,0.34529936]
[1723672339657,0.19477,58974.0,58973.0,0.34529936]
[1723672339858,0.24536037,58974.0,58973.0,0.34529936]
[1723672340657,0.24536037,58974.0,58973.0,0.34654139]
[1723672341761,0.32736037,58974.0,58973.0,0.34654139]
[1723672342072,0.27677,58974.0,58973.0,0.34654139]
[1723672342371,0.27677,58974.0,58973.0,0.261772]
[1723672343458,0.34421136,58974.0,58973.0,0.261772]
[1723672347166,0.27677,58974.0,58973.0,0.261772]
[1723672351169,0.36154,58974.0,58973.0,0.177]
[1723672351357,0.42896946,58974.0,58973.0,0.24480277]
[1723672351561,0.42896946,58974.0,58973.0,0.177]
[1723672351969,0.42896946,58974.0,58973.0,0.147]
[1723672352168,0.42896946,58974.0,58973.0,0.177]
[1723672352467,0.42896946,58974.0,58973.0,0.167]
[1723672354671,0.36154,58974.0,58973.0,0.167]
[1723672354967,0.42896946,58974.0,58973.0,0.167]
[1723672355174,0.36154,58974.0,58973.0,0.167]
[1723672355971,0.42896946,58974.0,58973.0,0.167]
[1723672357373,0.42896946,58974.0,58973.0,0.007]
[1723672358173,0.36154,58974.0,58973.0,0.007]
[1723672360176,0.42896946,58974.0,58973.0,0.007]
[1723672361276,0.36154,58974.0,58973.0,0.007]
[1723672362269,0.42896946,58974.0,58973.0,0.007]
[1723672362771,0.51373946,58974.0,58973.0,0.007]
[1723672362977,0.44631,58974.0,58973.0,0.007]
[1723672363381,0.51370581,58974.0,58973.0,0.007]
[1723672364481,0.51370581,58974.0,58973.0,0.07480277]
[1723672367685,0.44631,58974.0,58973.0,0.07480277]
[1723672368585,0.44631,58974.0,58973.0,0.07479201]
[1723672369178,0.44631,58974.0,58973.0,0.007]
[1723672371476,0.95503,58974.0,58973.0,0.007]
[1723672371672,0.27954,58974.0,58973.0,0.007]
[1723672371977,0.42896668,58974.0,58973.0,0.007]
[1723672372285,0.36154,58974.0,58973.0,0.007]
[1723672372980,0.36154,58974.0,58973.0,0.005]
[1723672373181,0.36154,58974.0,58973.0,0.002]
[1723672373386,0.36154,58974.0,58973.0,0.06980823]
[1723672374382,0.36154,58974.0,58973.0,0.002]
[1723672374781,0.27954,58974.0,58973.0,0.002]
[1723672375284,0.27677,58974.0,58973.0,0.002]
[1723672375685,0.34420403,58974.0,58973.0,0.002]
[1723672380281,0.3442151,58974.0,58973.0,0.002]
[1723672380478,0.11,58974.0,58973.0,0.086772]
[1723672380787,0.13490087,58978.0,58973.0,0.76547354]
[1723672381089,0.06745979,58983.0,58982.0,0.084758]
[1723672381277,0.3216,58990.0,58989.0,0.084749]
[1723672381278,0.32400001,58990.0,58989.0,0.084749]
[1723672381475,0.06747245,58994.0,58993.0,0.084743]
[1723672381676,0.06747245,58994.0,58993.0,0.224743]
[1723672382077,0.06747245,58994.0,58993.0,0.295943]
[1723672382583,0.06747245,58994.0,58993.0,0.30605027]
[1723672383283,0.07647245,58994.0,58993.0,0.30805027]
[1723672383489,0.07647245,58994.0,58993.0,0.81657027]
[1723672383787,0.07647245,58994.0,58993.0,0.88409416]
[1723672383988,0.009,58994.0,58993.0,0.81657027]
[1723672384485,0.009,58994.0,58993.0,0.88817027]
[1723672384879,0.009,58994.0,58993.0,0.9556388]
[1723672385289,0.009,58994.0,58993.0,0.88817027]
[1723672385477,0.008,58994.0,58993.0,0.95459577]
[1723672385789,0.008,58994.0,58993.0,0.95559577]
[1723672385982,0.00025422,58999.0,58998.0,0.084736]
[1723672386189,0.11025422,58999.0,58998.0,0.254736]
[1723672386381,0.00025422,58999.0,58998.0,0.254736]
[1723672386778,0.12025422,58999.0,58998.0,0.254736]
[1723672387190,0.00825422,58999.0,58998.0,0.255736]
[1723672387381,0.00825422,58999.0,58998.0,0.256736]
[1723672387786,0.00825422,58999.0,58998.0,0.617536]
[1723672387988,0.082,59005.0,58998.0,1.44128]
[1723672388186,0.3608,59006.0,59000.0,0.082]
[1723672388384,0.082,59003.0,59000.0,0.252]
[1723672388784,0.082,59003.0,59002.0,0.08473]
[1723672388983,0.082,59003.0,59002.0,0.24473]
[1723672390181,0.082,59003.0,59002.0,0.24673]
[1723672390692,0.172,59003.0,59002.0,0.24673]
[1723672404199,0.09,59003.0,59002.0,0.24673]
[1723672404402,0.174729,59003.0,59002.0,0.24673]
[1723672407211,0.084746,58991.0,58990.0,0.0674255]
[1723672407397,0.722292,58991.0,58990.0,0.0674255]
[1723672407597,1.630852,58991.0,58990.0,0.0674255]
[1723672407799,1.630852,58991.0,58990.0,0.05484206]
[1723672407996,0.169504,58987.0,58986.0,0.08405084]
[1723672408297,0.169512,58984.0,58981.0,0.00025422]
[1723672408491,0.5528,58984.0,58972.0,0.21650601]
[1723672408691,0.082,58977.0,58972.0,0.21650601]
[1723672408896,0.182,58977.0,58972.0,0.21650601]
[1723672409198,0.182,58977.0,58972.0,0.38650601]
[1723672409404,0.084772,58973.0,58972.0,0.30450601]
[1723672409604,0.084772,58973.0,58972.0,0.38650601]
[1723672410006,0.084772,58973.0,58972.0,0.39350601]
[1723672410808,0.084772,58973.0,58972.0,0.47827901]
[1723672411507,0.084772,58973.0,58972.0,0.48527901]
[1723672412205,0.084772,58973.0,58972.0,0.47827901]
[1723672412401,0.084772,58973.0,58972.0,0.48527901]
[1723672413307,0.09494432,58977.0,58973.0,0.084771]
[1723672413502,0.194766,58977.0,58976.0,0.082]
[1723672413703,0.194766,58977.0,58976.0,0.252]
[1723672414102,0.084766,58977.0,58976.0,0.252]
[1723672414401,0.094766,58977.0,58976.0,0.252]
[1723672416007,0.094766,58977.0,58976.0,0.257]
[1723672417109,0.36105422,58978.0,58976.0,0.257]
[1723672417310,0.46105422,58978.0,58976.0,0.257]
[1723672417609,0.46105422,58978.0,58977.0,0.2204]
[1723672417812,0.46105422,58978.0,58977.0,0.3904]
[1723672418315,0.46105422,58978.0,58977.0,0.475166]
[1723672419210,0.46105422,58978.0,58977.0,0.985846]
[1723672419613,0.46105422,58978.0,58977.0,0.477166]
[1723672419815,0.46105422,58978.0,58977.0,0.478166]
[1723672420216,0.46105422,58978.0,58977.0,0.986846]
[1723672420402,0.46105422,58978.0,58977.0,1.071612]
[1723672420605,0.46105422,58978.0,58977.0,0.562932]
[1723672420812,0.10025422,58978.0,58977.0,0.562932]
[1723672422911,0.18501822,58978.0,58977.0,0.478166]
[1723672423409,0.18501822,58978.0,58977.0,0.560166]
[1723672423816,0.10025422,58978.0,58977.0,0.560166]
[1723672428128,0.10025422,58978.0,58977.0,0.478166]
[1723672430520,0.10025422,58978.0,58977.0,0.53978723]
[1723672430725,0.10025422,58978.0,58977.0,0.489166]
[1723672431621,0.10025422,58978.0,58977.0,0.482166]
[1723672431917,0.10025422,58978.0,58977.0,0.489166]
[1723672437809,0.10025422,58978.0,58977.0,0.571166]
[1723672441419,0.10025422,58978.0,58977.0,0.498066]
[1723672441619,0.10025422,58978.0,58977.0,0.571066]
[1723672444426,0.52069223,58984.0,58983.0,0.084757]
[1723672444634,0.49069223,58984.0,58983.0,0.234757]
[1723672445232,0.4808,58984.0,58983.0,0.316757]
[1723672445929,0.12,58984.0,58983.0,0.316757]